Workbook

Sheet Sheet1
A1: Date measured | G1: 2020-07-23 | X1: AAA Rating
D2: class | E2: class | Q2: ADJ | R2: CORR | T2: Expected | U2: Expected | W2: weight | X2: EMA | Y2: Frame
A3: Stud | B3: Lot No | C3: Class | D3: 3 | E3: 6 | F3: Tattoo | G3: Birth Date | H3: Live Wt | I3: Hip Ht | J3: P8 Fat | K3: Rib Fat | L3: EMA | M3: Scrot | N3: Age | O3: Frame | P3: ADG | Q3: HIP | R3: EMA | S3: CorrWt | T3: Wt | U3: EMA | V3: ADG | W3: rating | X3: rating | Y3: rating | Z3: Months
A4: KYLANDEE | B4: 1 | F4: KH1P003 | G4: 2018-07-15 | H4: 1055 | J4: 15 | K4: 9 | L4: 137 | M4: 48 | N4: =$G$1-G4 -> 739 | O4: =IF(N4<=730,(-11.548+(0.4878*(I4/2.54))-(0.0289*N4)+(0.00001947*N4*N4)+(0.0000334*(I4/2.54)*N4)),(-11.548+(0.4878*(Q4/2.54))-(0.0289*730)+(0.00001947*730*730)+(0.0000334*(Q4/2.54)*730))) -> -22.30028891 | P4: =H4/N4 -> 1.427604871 | Q4: =IF(N4>=730,I4-(N4-730)*0.017,I4) -> -0.153 | R4: =IF(J4<10,90.477+1.227*J4-0.026*J4^2,L4) -> 137 | S4: =H4+8*(13.8-J4) -> 1045.4 | T4: =IF(N4<=1000,-386.239+2.6796*N4-0.001485*N4^2,808.36) -> 782.995715 | U4: =3.176+0.193*H4-0.0000845*H4^2 -> 112.7403875 | V4: =(H4/N4) -> 1.427604871 | W4: =IF(S4>T4,"A"," ") -> A | X4: =IF(L4*1.05>U4,"A"," ") -> A | Y4: =IF(O4>=4.945,"A"," ") ->  | Z4: =SUM(N4/30.4) -> 24.30921053
A5: KYLANDEE | B5: 2 | F5: KH1P004 | G5: 2018-07-23 | H5: 930 | J5: 20 | K5: 13 | L5: 125 | M5: 49 | N5: 731 | O5: -22.27286499 | P5: 1.272229822 | Q5: -0.017 | R5: 125 | S5: 880.4 | T5: 779.022515 | U5: 109.58195 | V5: =(H5/N5) -> 1.272229822 | W5: A | X5: A | Z5: =SUM(N5/30.4) -> 24.04605263
A6: KYLANDEE | B6: 3 | F6: KH1P002 | G6: 2018-07-01 | H6: 935 | J6: 12 | K6: 8 | L6: 134 | M6: 46 | N6: 753 | O6: -22.34828076 | P6: 1.241699867 | Q6: -0.391 | R6: 134 | S6: 949.4 | T6: 789.491435 | U6: 109.7589875 | V6: 1.241699867 | W6: A | X6: A | Z6: 24
A7: WITHDRAWN | B7: 4
A8: EMU HOLES | B8: 5 | F8: EMUP102 | G8: 2018-07-03 | H8: 1030 | J8: 13 | K8: 10 | L8: 132 | M8: 43 | N8: 751 | O8: -22.34142479 | P8: 1.37150466 | Q8: -0.357 | R8: 132 | S8: 1036.4 | T8: 788.599115 | U8: 112.31995 | V8: 1.37150466 | W8: A | X8: A | Z8: 24
A9: WITHDRAWN | B9: 6 | O9: -11.548 | Q9: 0 | R9: 90.477 | S9: 110.4 | T9: -386.239 | U9: 3.176 | W9: A
A10: COURALLIE J | B10: 7 | F10: HH4P060 | G10: 2018-08-17 | H10: 875 | J10: 9 | K10: 7 | L10: 136 | M10: 37 | N10: 706 | O10: -22.24685108 | P10: 1.239376771 | Q10: 0 | R10: 99.414 | S10: 913.4 | T10: 765.38114 | U10: 107.3556875 | V10: 1.239376771 | W10: A | X10: A | Z10: =SUM(N10/30.4) -> 23.22368421
A11: COURALLIE J | B11: 8 | F11: HH4P086 | G11: 2018-09-06 | H11: 790 | J11: 15 | K11: 9 | L11: 118 | M11: 38 | N11: 686 | O11: -22.21089588 | P11: 1.151603499 | Q11: 0 | R11: 118 | S11: 780.4 | T11: 753.13154 | U11: 102.90955 | V11: 1.151603499 | W11: A | X11: A | Z11: 22
A12: WITHDRAWN | B12: 9 | O12: -11.548 | Q12: 0 | R12: 90.477 | S12: 110.4 | T12: -386.239 | U12: 3.176 | W12: A
A13: COURALLIE J | B13: 10 | F13: HH4P022 | G13: 2018-07-27 | H13: 875 | J13: 13 | K13: 9 | L13: 133 | M13: 40 | N13: 727 | O13: -22.26784037 | P13: 1.203576341 | Q13: 0 | R13: 133 | S13: 881.4 | T13: 776.964635 | U13: 107.3556875 | V13: 1.203576341 | W13: A | X13: A | Z13: 23
A14: Vendor retains the right to collect 100 straws of semen at their own expense at the Purchasers convenience. No further call on the Bull.
A15: DUNDEE | B15: 11 | F15: RK2P071 | G15: 2018-08-21 | H15: 955 | J15: 17 | K15: 11 | L15: 128 | M15: 41 | N15: 702 | O15: -22.24090612 | P15: 1.36039886 | Q15: 0 | R15: 128 | S15: 929.4 | T15: 763.02626 | U15: 110.4248875 | V15: 1.36039886 | W15: A | X15: A | Z15: =SUM(N15/30.4) -> 23.09210526
A16: DUNDEE | B16: 12 | F16: RK2P056 | G16: 2018-04-04 | H16: 895 | J16: 20 | K16: 12 | L16: 125 | M16: 36 | N16: 841 | O16: -22.64994386 | P16: 1.064209275 | Q16: -1.887 | R16: 125 | S16: 845.4 | T16: 816.992315 | U16: 108.2243875 | V16: 1.064209275 | W16: A | X16: A | Z16: 27
A17: SWANVALE | B17: 13 | F17: WPKP811 | G17: 2018-06-11 | H17: 1020 | J17: 15 | K17: 8 | L17: 124 | M17: 43 | N17: 773 | O17: -22.41684056 | P17: 1.319534282 | Q17: -0.731 | R17: 124 | S17: 1010.4 | T17: 797.761235 | U17: 112.1222 | V17: 1.319534282 | W17: A | X17: A | Z17: =($G$1-G17)/30.4 -> 25.42763158
A18: SWANVALE | B18: 14 | F18: WPKP832 | G18: 2018-07-08 | H18: 945 | J18: 20 | K18: 12 | L18: 134 | M18: 43.5 | N18: 746 | O18: -22.32428484 | P18: 1.266756032 | Q18: -0.272 | R18: 134 | S18: 895.4 | T18: 786.31634 | U18: 110.1003875 | V18: 1.266756032 | W18: A | X18: A | Z18: 24
A19: SWANVALE | B19: 15 | F19: WPKP871 | G19: 2018-09-23 | H19: 850 | J19: 14 | K19: 10 | L19: 120 | M19: 41 | N19: 669 | O19: -22.16808733 | P19: 1.270553064 | Q19: =IF(N19>=730,I19-(N19-730)*0.017,I19) -> 0 | R19: =IF(J19<10,90.477+1.227*J19-0.026*J19^2,L19) -> 120 | S19: =H19+8*(13.8-J19) -> 848.4 | T19: 741.785315 | U19: =3.176+0.193*H19-0.0000845*H19^2 -> 106.17475 | V19: 1.270553064 | W19: =IF(S19>T19,"A"," ") -> A | X19: A | Y19: =IF(O19>=4.945,"A"," ") ->  | Z19: 22.00657895
A20: SUPPLE | B20: 16 | F20: SBRP178 | G20: 2018-09-16 | H20: 910 | J20: 9 | K20: 6 | L20: 118 | M20: 40 | N20: 676 | O20: -22.18707728 | P20: 1.346153846 | Q20: 0 | R20: 99.414 | S20: 948.4 | T20: 746.56124 | U20: 108.83155 | V20: 1.346153846 | W20: A | X20: A | Z20: 22.23684211
A21: SUPPLE | B21: 17 | F21: SBRP181 | G21: 2018-09-20 | H21: 835 | J21: 13 | K21: 9 | L21: 125 | M21: 42.5 | N21: 672 | O21: -22.17645952 | P21: 1.242559524 | Q21: 0 | R21: 125 | S21: 841.4 | T21: 743.84996 | U21: 105.4154875 | V21: 1.242559524 | W21: A | X21: A | Z21: 22.10526316
A22: SUPPLE | B22: 18 | F22: SBRP036 | G22: 2018-06-01 | H22: 915 | J22: 15 | K22: 10 | L22: 128 | M22: 43 | N22: 783 | O22: -22.45112046 | P22: 1.168582375 | Q22: -0.901 | R22: 128 | S22: 905.4 | T22: 801.450635 | U22: 109.0254875 | V22: 1.168582375 | W22: A | X22: A | Z22: 25
A23: SUPPLE | B23: 19 | F23: SBRP112 | G23: 2018-07-05 | H23: 955 | J23: 11 | K23: 9 | L23: 132 | M23: 41.5 | N23: 749 | O23: -22.33456881 | P23: 1.275033378 | Q23: -0.323 | R23: 132 | S23: 977.4 | T23: 787.694915 | U23: 110.4248875 | V23: 1.275033378 | W23: A | X23: A | Z23: 24
A24: WITHDRAWN | B24: 20 | O24: -11.548 | Q24: 0 | R24: 90.477 | S24: 110.4 | T24: -386.239 | U24: 3.176 | W24: A
A25: SUPPLE | B25: 21 | F25: SBRP120 | G25: 2018-07-11 | H25: 895 | J25: 12 | K25: 10 | L25: 127 | M25: 41.5 | N25: 743 | O25: -22.31400087 | P25: 1.204576043 | Q25: -0.221 | R25: 127 | S25: 909.4 | T25: 784.911035 | U25: 108.2243875 | V25: 1.204576043 | W25: A | X25: A | Z25: 24.44078947
A26: REEVESDALE | B26: 22 | F26: HGRP010 | G26: 2018-09-20 | H26: 870 | J26: 10 | K26: 7 | L26: 126 | M26: 37 | N26: 672 | O26: -22.17645952 | P26: 1.294642857 | Q26: 0 | R26: 126 | S26: 900.4 | T26: 743.84996 | U26: 107.12795 | V26: 1.294642857 | W26: A | X26: A | Z26: 22.10526316
A27: JINDALEE | B27: 23 | F27: AEVP061 | G27: 2018-07-21 | H27: 875 | J27: 15 | K27: 10 | L27: 118 | M27: 39 | N27: 733 | O27: -22.27972097 | P27: 1.19372442 | Q27: -0.051 | R27: 118 | S27: 865.4 | T27: 780.033635 | U27: 107.3556875 | V27: 1.19372442 | W27: A | X27: A | Z27: 24.11184211
A28: TAHLAN | B28: 24 | F28: LTSP004 | G28: 2018-06-21 | H28: 905 | J28: 20 | K28: 12 | L28: 123 | M28: 37.5 | N28: 763 | O28: -22.38256066 | P28: 1.186107471 | Q28: -0.561 | R28: 123 | S28: 855.4 | T28: 793.774835 | U28: 108.6333875 | V28: 1.186107471 | W28: A | X28: A | Z28: 25.09868421
A29: TAHLAN | B29: 25 | F29: LTSP003 | G29: 2018-07-18 | H29: 920 | J29: 22 | K29: 14 | L29: 128 | M29: 32 | N29: 736 | O29: -22.29000494 | P29: 1.25 | Q29: -0.102 | R29: 128 | S29: 854.4 | T29: 781.52804 | U29: 109.2152 | V29: 1.25 | W29: A | X29: A | Z29: 24.21052632
A30: WENDOUREE | B30: 26 | F30: RSJP024 | G30: 2018-06-20 | H30: 1030 | J30: 19 | K30: 12 | L30: 122 | M30: 40 | N30: =$G$1-G30 -> 764 | O30: -22.38598865 | P30: =H30/N30 -> 1.348167539 | Q30: =IF(N30>=730,I30-(N30-730)*0.017,I30) -> -0.578 | R30: =IF(J30<10,90.477+1.227*J30-0.026*J30^2,L30) -> 122 | S30: =H30+8*(13.8-J30) -> 988.4 | T30: =IF(N30<=1000,-386.239+2.6796*N30-0.001485*N30^2,808.36) -> 794.18684 | U30: =3.176+0.193*H30-0.0000845*H30^2 -> 112.31995 | V30: 1.348167539 | W30: =IF(S30>T30,"A"," ") -> A | X30: A | Y30: =IF(O30>=4.945,"A"," ") ->  | Z30: 25.13157895
A31: WENDOUREE | B31: 27 | F31: RSP040 | G31: 2018-07-22 | H31: 910 | J31: 12 | K31: 10 | L31: 123 | M31: 42 | N31: 732 | O31: -22.27629298 | P31: 1.243169399 | Q31: -0.034 | R31: 123 | S31: 924.4 | T31: 779.52956 | U31: 108.83155 | V31: 1.243169399 | W31: A | X31: A | Z31: 24.07894737
A32: BAHREENAH | B32: 28 | F32: DNFP026 | G32: 2018-08-28 | H32: 880 | J32: 14 | K32: 10 | L32: 127 | M32: 36 | N32: 695 | O32: -22.22900325 | P32: 1.26618705 | Q32: 0 | R32: 127 | S32: 878.4 | T32: 758.790875 | U32: 107.5792 | V32: 1.26618705 | W32: A | X32: A | Z32: 22
A33: BRAELYN | B33: 29 | F33: 6SSP120 | G33: 2018-11-12 | H33: 750 | J33: 8 | K33: 6 | L33: 122 | M33: 35 | N33: 619 | O33: -21.97695533 | P33: 1.211631664 | Q33: 0 | R33: 98.629 | S33: 796.4 | T33: 703.439315 | U33: 100.39475 | V33: 1.211631664 | W33: A | X33: A | Z33: 20.36184211
A34: WITHDRAWN | B34: 30 | O34: -11.548 | Q34: 0 | R34: 90.477 | S34: 110.4 | T34: -386.239 | U34: 3.176 | W34: A
A35: OWNAVIEW | B35: 31 | F35: OWNP008 | G35: 2018-08-01 | H35: 725 | J35: 9 | K35: 6 | L35: 110 | M35: 36 | N35: 722 | O35: -22.26440052 | P35: 1.004155125 | Q35: 0 | R35: 99.414 | S35: 763.4 | T35: 774.32546 | U35: 98.6856875 | V35: 1.004155125 | X35: A | Z35: 23
A36: OWNAVIEW | B36: 32 | F36: OWNP010 | G36: 2018-08-02 | H36: 900 | J36: 15 | K36: 8 | L36: 131 | M36: 37.5 | N36: 721 | O36: -22.26359573 | P36: 1.248266297 | Q36: 0 | R36: 131 | S36: 890.4 | T36: 773.788715 | U36: 108.431 | V36: 1.248266297 | W36: A | X36: A | Z36: 23
A37: TUMMEL | B37: 33 | F37: GOLP433 | G37: 2018-04-20 | H37: 1010 | J37: 17 | K37: 10 | L37: 136 | M37: 43 | N37: 825 | O37: -22.59509603 | P37: 1.224242424 | Q37: -1.615 | R37: 136 | S37: 984.4 | T37: 813.702875 | U37: 111.90755 | V37: 1.224242424 | W37: A | X37: =IF(L37*1.05>U37,"A"," ") -> A | Z37: 27.13815789
A38: TUMMEL | B38: 34 | F38: GOLP159 | G38: 2018-07-10 | H38: 985 | J38: 15 | K38: 9 | L38: 127 | M38: 39 | N38: 744 | O38: -22.31742886 | P38: 1.323924731 | Q38: -0.238 | R38: 127 | S38: 975.4 | T38: 785.38244 | U38: 111.2969875 | V38: 1.323924731 | W38: A | X38: A | Z38: 24.47368421
A39: TUMMEL | B39: 35 | F39: GOLP099 | G39: 2018-08-07 | H39: 950 | J39: 13 | K39: 9 | L39: 130 | M39: 41 | N39: 716 | O39: -22.25898768 | P39: 1.326815642 | Q39: 0 | R39: 130 | S39: 956.4 | T39: 771.06044 | U39: 110.26475 | V39: 1.326815642 | W39: A | X39: A | Z39: 23
A40: TUMMEL | B40: 36 | F40: GOLP011 | G40: 2018-09-11 | H40: 900 | J40: 13 | K40: 9 | L40: 117 | M40: 45 | N40: 681 | O40: -22.19947333 | P40: 1.321585903 | Q40: 0 | R40: 117 | S40: 906.4 | T40: 749.883515 | U40: 108.431 | V40: 1.321585903 | W40: A | X40: A | Z40: 22.40131579
A41: WITHDRAWN | B41: 37
A42: KYLANDEE | B42: 38 | F42: GH1P010 | G42: 2018-08-03 | H42: 965 | J42: 15 | K42: 9 | L42: 127 | M42: 48.5 | N42: 720 | O42: -22.262752 | P42: 1.340277778 | Q42: 0 | R42: 127 | S42: 955.4 | T42: 773.249 | U42: 110.7324875 | V42: 1.340277778 | W42: A | X42: A | Z42: 23
A43: KYLANDEE | B43: 39 | F43: GH1P009 | G43: 2018-06-17 | H43: 960 | J43: 11 | K43: 9 | L43: 130 | M43: 45 | N43: 767 | O43: -22.39627262 | P43: 1.251629726 | Q43: =IF(N43>=730,I43-(N43-730)*0.017,I43) -> -0.629 | R43: =IF(J43<10,90.477+1.227*J43-0.026*J43^2,L43) -> 130 | S43: =H43+8*(13.8-J43) -> 982.4 | T43: 795.405035 | U43: =3.176+0.193*H43-0.0000845*H43^2 -> 110.5808 | V43: 1.251629726 | W43: =IF(S43>T43,"A"," ") -> A | X43: A | Y43: =IF(O43>=4.945,"A"," ") ->  | Z43: 25.23026316
A44: EMU HOLES | B44: 40 | F44: EMUP107 | G44: 2018-07-04 | H44: 1070 | J44: 23 | K44: 13 | L44: 133 | M44: 39.5 | N44: =$G$1-G44 -> 750 | O44: -22.3379968 | P44: =H44/N44 -> 1.426666667 | Q44: =IF(N44>=730,I44-(N44-730)*0.017,I44) -> -0.34 | R44: =IF(J44<10,90.477+1.227*J44-0.026*J44^2,L44) -> 133 | S44: =H44+8*(13.8-J44) -> 996.4 | T44: =IF(N44<=1000,-386.239+2.6796*N44-0.001485*N44^2,808.36) -> 788.1485 | U44: =3.176+0.193*H44-0.0000845*H44^2 -> 112.94195 | V44: =(H44/N44) -> 1.426666667 | W44: =IF(S44>T44,"A"," ") -> A | X44: =IF(L44*1.05>U44,"A"," ") -> A | Y44: =IF(O44>=4.945,"A"," ") ->  | Z44: 24
A45: WITHDRAWN | B45: 41 | O45: -11.548 | P45: =H45/N45 ->  | Q45: =IF(N45>=730,I45-(N45-730)*0.017,I45) -> 0 | R45: =IF(J45<10,90.477+1.227*J45-0.026*J45^2,L45) -> 90.477 | S45: =H45+8*(13.8-J45) -> 110.4 | T45: =IF(N45<=1000,-386.239+2.6796*N45-0.001485*N45^2,808.36) -> -386.239 | U45: =3.176+0.193*H45-0.0000845*H45^2 -> 3.176 | W45: =IF(S45>T45,"A"," ") -> A | X45: =IF(L45*1.05>U45,"A"," ") ->  | Y45: =IF(O45>=4.945,"A"," ") -> 
A46: COURALLIE J | B46: 42 | F46: HH4P051 | G46: 2018-08-15 | H46: 820 | J46: 8 | K46: 6 | L46: 119 | M46: 42 | N46: =$G$1-G46 -> 708 | O46: =IF(N46<=730,(-11.548+(0.4878*(I46/2.54))-(0.0289*N46)+(0.00001947*N46*N46)+(0.0000334*(I46/2.54)*N46)),(-11.548+(0.4878*(Q46/2.54))-(0.0289*730)+(0.00001947*730*730)+(0.0000334*(Q46/2.54)*730))) -> -22.24958992 | P46: =H46/N46 -> 1.15819209 | Q46: =IF(N46>=730,I46-(N46-730)*0.017,I46) -> 0 | R46: =IF(J46<10,90.477+1.227*J46-0.026*J46^2,L46) -> 98.629 | S46: =H46+8*(13.8-J46) -> 866.4 | T46: =IF(N46<=1000,-386.239+2.6796*N46-0.001485*N46^2,808.36) -> 766.54076 | U46: =3.176+0.193*H46-0.0000845*H46^2 -> 104.6182 | V46: =(H46/N46) -> 1.15819209 | W46: =IF(S46>T46,"A"," ") -> A | X46: =IF(L46*1.05>U46,"A"," ") -> A | Y46: =IF(O46>=4.945,"A"," ") ->  | Z46: =($G$1-G46)/30.4 -> 23.28947368
A47: COURALLIE J | B47: 43 | F47: HH4P077 | G47: 2018-08-27 | H47: 760 | J47: 8 | K47: 6 | L47: 116 | M47: 42 | N47: 696 | O47: -22.23082048 | P47: 1.091954023 | Q47: 0 | R47: 98.629 | S47: 806.4 | T47: 759.40484 | U47: 101.0488 | V47: 1.091954023 | W47: A | X47: A | Z47: 22
A48: WITHDRAWN | B48: 44 | O48: -11.548 | Q48: 0 | R48: 90.477 | S48: 110.4 | T48: -386.239 | U48: 3.176 | W48: A
A49: DUNDEE | B49: 45 | F49: RK2P059 | G49: 2018-07-19 | H49: 930 | J49: 16 | K49: 12 | L49: 118 | M49: 42 | N49: 735 | O49: -22.28657695 | P49: 1.265306122 | Q49: -0.085 | R49: 118 | S49: 912.4 | T49: 781.032875 | U49: 109.58195 | V49: 1.265306122 | X49: A | Z49: 24.17763158
A50: DUNDEE | B50: 46 | F50: RK2P057 | G50: 2018-06-26 | H50: 840 | J50: 16 | K50: 10 | L50: 118 | M50: 38 | N50: 758 | O50: =IF(N50<=730,(-11.548+(0.4878*(I50/2.54))-(0.0289*N50)+(0.00001947*N50*N50)+(0.0000334*(I50/2.54)*N50)),(-11.548+(0.4878*(Q50/2.54))-(0.0289*730)+(0.00001947*730*730)+(0.0000334*(Q50/2.54)*730))) -> -22.36542071 | P50: 1.10817942 | Q50: -0.476 | R50: 118 | S50: 822.4 | T50: 791.67026 | U50: 105.6728 | V50: 1.10817942 | W50: A | X50: A | Z50: 24
A51: SWANVALE | B51: 47 | F51: WPKP824 | G51: 2018-07-04 | H51: 925 | J51: 22 | K51: 16 | L51: 123 | M51: 38.5 | N51: =$G$1-G51 -> 750 | O51: =IF(N51<=730,(-11.548+(0.4878*(I51/2.54))-(0.0289*N51)+(0.00001947*N51*N51)+(0.0000334*(I51/2.54)*N51)),(-11.548+(0.4878*(Q51/2.54))-(0.0289*730)+(0.00001947*730*730)+(0.0000334*(Q51/2.54)*730))) -> -22.3379968 | P51: =H51/N51 -> 1.233333333 | Q51: =IF(N51>=730,I51-(N51-730)*0.017,I51) -> -0.34 | R51: =IF(J51<10,90.477+1.227*J51-0.026*J51^2,L51) -> 123 | S51: =H51+8*(13.8-J51) -> 859.4 | T51: =IF(N51<=1000,-386.239+2.6796*N51-0.001485*N51^2,808.36) -> 788.1485 | U51: =3.176+0.193*H51-0.0000845*H51^2 -> 109.4006875 | V51: =(H51/N51) -> 1.233333333 | W51: =IF(S51>T51,"A"," ") -> A | X51: =IF(L51*1.05>U51,"A"," ") -> A | Y51: =IF(O51>=4.945,"A"," ") ->  | Z51: 24
A52: WITHDRAWN | B52: 48 | O52: -11.548 | Q52: 0 | R52: 90.477 | S52: 110.4 | T52: -386.239 | U52: 3.176 | W52: A
A53: SUPPLE | B53: 49 | F53: SBRP020 | G53: 2018-05-25 | H53: 825 | J53: 11 | K53: 7 | L53: 114 | M53: 38.5 | N53: 790 | O53: -22.47511639 | P53: 1.044303797 | Q53: -1.02 | R53: 114 | S53: 847.4 | T53: 803.8565 | U53: 104.8881875 | V53: 1.044303797 | W53: A | X53: A | Z53: 25
A54: SUPPLE | B54: 50 | F54: SBRP168 | G54: 2018-09-01 | H54: 805 | J54: 14 | K54: 9 | L54: 120 | M54: 40 | N54: =$G$1-G54 -> 691 | O54: -22.22134493 | P54: =H54/N54 -> 1.164978292 | Q54: 0 | R54: 120 | S54: 803.4 | T54: =IF(N54<=1000,-386.239+2.6796*N54-0.001485*N54^2,808.36) -> 756.305315 | U54: 103.7828875 | V54: 1.164978292 | W54: A | X54: A | Z54: 22
A55: SUPPLE | B55: 51 | F55: SBRP107 | G55: 2018-07-01 | H55: 990 | J55: 15 | K55: 9 | L55: 115 | M55: 40.5 | N55: 753 | O55: -22.34828076 | P55: 1.314741036 | Q55: =IF(N55>=730,I55-(N55-730)*0.017,I55) -> -0.391 | R55: =IF(J55<10,90.477+1.227*J55-0.026*J55^2,L55) -> 115 | S55: =H55+8*(13.8-J55) -> 980.4 | T55: 789.491435 | U55: =3.176+0.193*H55-0.0000845*H55^2 -> 111.42755 | V55: 1.314741036 | W55: =IF(S55>T55,"A"," ") -> A | X55: A | Y55: =IF(O55>=4.945,"A"," ") ->  | Z55: 24
A56: SUPPLE | B56: 52 | F56: SBRP074 | G56: 2018-06-14 | H56: 830 | J56: 9 | K56: 6 | L56: 128 | M56: 37.5 | N56: 770 | O56: -22.40655659 | P56: 1.077922078 | Q56: -0.68 | R56: 99.414 | S56: 868.4 | T56: 796.5965 | U56: 105.15395 | V56: 1.077922078 | W56: A | X56: A | Z56: 25
A57: SUPPLE | B57: 53 | F57: SBRP132 | G57: 2018-07-21 | H57: 795 | J57: 10 | K57: 8 | L57: 122 | M57: 40.5 | N57: 733 | O57: -22.27972097 | P57: 1.084583902 | Q57: -0.051 | R57: 122 | S57: 825.4 | T57: 780.033635 | U57: 103.2048875 | V57: 1.084583902 | W57: A | X57: A | Z57: 24.11184211
A58: WITHDRAWN | B58: 54
A59: WITHDRAWN | B59: 55 | O59: -11.548 | Q59: 0 | R59: 90.477 | S59: 110.4 | T59: -386.239 | W59: A
A60: WITHDRAWN | B60: 56
A61: WENDOUREE | B61: 57 | F61: RSJP050 | G61: 2018-08-15 | H61: 950 | J61: 13 | K61: 7 | L61: 121 | M61: 43 | N61: 708 | O61: -22.24958992 | P61: 1.34180791 | Q61: 0 | R61: 121 | S61: 956.4 | T61: 766.54076 | U61: 110.26475 | V61: 1.34180791 | W61: A | X61: A | Z61: 23.28947368
A62: BAHREENAH | B62: 58 | F62: DNFP027 | G62: 2018-08-29 | H62: 900 | J62: 15 | K62: 10 | L62: 124 | M62: 42 | N62: 694 | O62: -22.22714708 | P62: 1.296829971 | Q62: 0 | R62: 124 | S62: 890.4 | T62: 758.17394 | U62: 108.431 | V62: 1.296829971 | W62: A | X62: A | Z62: 22
A63: OWNAVIEW | B63: 59 | F63: OWNP017 | G63: 2018-08-26 | H63: 815 | J63: 14 | K63: 8 | L63: 121 | M63: 39 | N63: 697 | O63: -22.23259877 | P63: 1.169296987 | Q63: 0 | R63: 121 | S63: 813.4 | T63: 760.015835 | U63: 104.3439875 | V63: 1.169296987 | W63: A | X63: A | Z63: 22
A64: TUMMEL | B64: 60 | F64: GOLP035 | G64: 2018-09-05 | H64: 905 | J64: 14 | K64: 10 | L64: 115 | M64: 47 | N64: 687 | O64: -22.21306357 | P64: 1.317321689 | Q64: 0 | R64: 115 | S64: 903.4 | T64: 753.772235 | U64: 108.6333875 | V64: 1.317321689 | W64: A | X64: A | Z64: 22
A65: WITHDRAWN | B65: 61 | O65: -11.548 | Q65: 0 | R65: 90.477 | S65: 110.4 | T65: -386.239 | U65: 3.176 | W65: A
A66: TUMMEL | B66: 62 | F66: GOLP153 | G66: 2018-07-18 | H66: 885 | J66: 10 | K66: 7 | L66: 127 | M66: 38 | N66: 736 | O66: -22.29000494 | P66: 1.202445652 | Q66: -0.102 | R66: 127 | S66: 915.4 | T66: 781.52804 | U66: 107.7984875 | V66: 1.202445652 | W66: A | X66: A | Z66: 24.21052632
B68: LOT 33 EBV'S
